Cogmind - Beta 15 @@@ ROGUE MODE // 2025.05.10 @ 17:05:53 Player: tovernaar123 Result: Destroyed by G-34 Mercenary with Small Laser Performance ------------- Evolutions (0) 0 Regions Visited (1) 200 Robots Destroyed (7) 35 Value Destroyed (82) 82 Prototype IDs (0) 0 Alien Tech Used (0) 0 Bonus (0) 0 TOTAL SCORE: 317 Bonus ------- None Cogmind --------- Core Integrity 0/250 Matter 292/300 Energy 100/100 System Corruption 0% Temperature Cool (6) Movement Core (100) Ox1 Location -10/Materials Parts ------- > --- POWER (1) -------- (None) > --- PROPULSION (2) --- (None) > --- UTILITY (2) ------ Small Storage Unit > --- WEAPON (2) ------- (None) > --- INVENTORY (8) ---- Ion Engine Light Ion Engine Aluminum Leg Aluminum Leg Medium Laser Light Assault Rifle Light Assault Rifle Datajack Peak State ------------ > --- POWER ------------ Light Ion Engine > --- PROPULSION ------- Wheel Wheel > --- UTILITY ---------- Small Storage Unit > --- WEAPON ----------- Medium Laser Assault Rifle > --- INVENTORY -------- Aluminum Leg Aluminum Leg [Rating: 6] Favorites ----------- Power Light Ion Engine Engine Light Ion Engine Propulsion Wheel Wheel Wheel Utility Small Storage Unit Storage Small Storage Unit Weapon Assault Rifle Energy Gun Medium Laser Ballistic Gun Assault Rifle Special Melee Weapon Datajack Build | -11 -10 ------- Run | Yrd Mat Slots Evolved . | . . Power . | . . Propulsion . | . . Utility . | . . Weapon . | . . Parts Attached 8 | 6 2 Power 2 | 1 1 Engine 2 | 1 1 Core . | . . Reactor . | . . Propulsion 2 | 2 . Treads . | . . Leg . | . . Wheel 2 | 2 . Hover . | . . Flight . | . . Utility 1 | 1 . Device . | . . Storage 1 | 1 . Processor . | . . Hackware . | . . Protection . | . . Artifact . | . . Weapon 3 | 2 1 Energy Gun 1 | 1 . Energy Cannon . | . . Ballistic Gun 1 | 1 . Ballistic Cannon . | . . Launcher . | . . Special Weapon . | . . Impact Weapon . | . . Slashing Weapon . | . . Piercing Weapon . | . . Special Melee Weapon 1 | . 1 Unidentified Prototypes . | . . Parts Lost 5 | . 5 Power 1 | . 1 Propulsion 2 | . 2 Utility . | . . Weapon 2 | . 2 Highest Loss Streak 5 | . 5 To Critical Strikes . | . . Average Backups 7 | 2 7 Power 1 | . 1 Propulsion 1 | 1 2 Utility . | . . Weapon 1 | . 2 Tool/Special . | . . Unused Backups 9 | . 9 Power 2 | . 2 Propulsion 2 | . 2 Utility . | . . Weapon 2 | . 2 Tool/Special 3 | . 3 Average Slot Usage (%) 81 | . 81 Engine 12 | . 12 Wheel 26 | . 26 Storage 14 | . 14 Energy Gun 8 | . 8 Ballistic Gun 11 | . 11 Special Melee Weapon 7 | . 7 Peak Build Rating 6 | 6 6 Average Rating 5 | 4 5 On Entrance 3 | . 6 Naked Turns . | . . Heaviest Build 12 | 12 12 Greatest Support 20 | 20 20 Greatest Overweight (x) . | . . Average Overweight (x) . | . . Largest Inventory Capacity 8 | 8 8 Average Capacity 7 | 6 8 Most Carried 8 | 4 8 Average Carried 7 | 2 7 Final Capacity 8 | 8 8 Final Carried 8 | 4 8 Class Distribution -------------------- 100% | Mutant Dominant Class ---------------- Mutant | -10/Materials Resources | -11 -10 ----------- Run | Yrd Mat Matter Collected 340 | 223 117 Remotely . | . . Salvage Created 125 | . 125 Parts 11 | . 11 Haulers Intercepted . | . . Recyclers Shooed . | . . Parts Field Recycled . | . . Retrieved Matter . | . . Parts Self-Destructed . | . . Prevented . | . . Kills | -11 -10 ------- Run | Yrd Mat Combat Hostiles Destroyed 5 | . 5 Guns 5 | . 5 Classes Destroyed 2 | . 2 Watcher 2 | . 2 Swarmer 5 | . 5 Best Kill Streak 3 | . 3 Combat Bots Only 3 | . 3 Max Kills in Single Turn 1 | . 1 Gunslinging . | . . Exploded . | . . Melee . | . . Uniques/NPCs Destroyed . | . . Combat | -11 -10 -------- Run | Yrd Mat Hostile Shots Fired 99 | . 99 Missed 27 | . 27 Hits 72 | . 72 Projectile 72 | . 72 Damage Taken 642 | . 642 Core 259 | . 259 Absorbed by Shields . | . . Core Remaining (%) 100 | 100 . Volleys Fired 23 | . 23 Largest 2 | . 2 Hottest 70 | . 70 Shots Fired 34 | . 34 Gun 34 | . 34 Cannon . | . . Launcher . | . . Special . | . . Kinetic 22 | . 22 Thermal 12 | . 12 Explosive . | . . Electromagnetic . | . . Robot Hit Streak 7 | . 7 Robot Miss Streak 4 | . 4 Penetration Max . | . . Secondary Targets . | . . Shots Hit Robots 31 | . 31 Core Hits 9 | . 9 Critical Kills . | . . Critical Parts Destroyed . | . . Critical Strikes . | . . Melee Attacks 19 | . 19 Impact . | . . Slashing . | . . Piercing . | . . Sneak Attacks 10 | . 10 Combat Hostiles . | . . Follow-up Attacks . | . . Damage Inflicted 288 | . 288 Guns 264 | . 264 Cannons . | . . Explosions . | . . Melee . | . . Ramming 24 | . 24 Kinetic 163 | . 163 Thermal 101 | . 101 Explosive . | . . Electromagnetic . | . . Impact . | . . Slashing . | . . Piercing . | . . Highest Corruption . | . . Average Corruption . | . . Corruption Purged . | . . Corruption Blocked . | . . Overload Shots . | . . Overflow Damage . | . . Projectiles . | . . Explosions . | . . Melee . | . . Knockbacks . | . . Impact . | . . Kinetic . | . . Secondary . | . . Self-Inflicted Damage 11 | . 11 Shots . | . . Rammed 3 | . 3 Targets Rammed 3 | . 3 Kicked . | . . Crushed . | . . Highest Temperature 36 | . 36 Average Temperature 11 | . 11 Received Heat Transfer 90 | . 90 Siege Activations . | . . Martial Activations . | . . Shielding Activations . | . . Robots Disrupted . | . . Combat Hostiles . | . . Robots Corrupted . | . . Combat Hostiles . | . . Parts Fried . | . . Impact Corruptions . | . . Robots Melted . | . . Combat Hostiles . | . . Parts Melted . | . . Heat Transferred 296 | . 296 Parts Sabotaged . | . . Parts Stolen . | . . Parts Stripped . | . . Power Chain Reactions . | . . Alert | -11 -10 ------- Run | Yrd Mat Maximum Alert Level . | . . Low Security (%) 100 | 100 100 Level 1 . | . . Level 2 . | . . Level 3 . | . . Level 4 . | . . Level 5 . | . . High Security . | . . Max Security . | . . Peak Influence 75 | . 75 Initial . | . . Average 15 | . 17 Influence Increases 154 | . 154 Destroy 0b10 Robot/C 100 | . 100 Destroy 0b10 Robot/NC 10 | . 10 Destroy Leader 14 | . 14 Lose Combat Pursuer 30 | . 30 Influence Decreases 154 | . 154 Time Decay 109 | . 109 Lost Part 45 | . 45 Squads Dispatched 1 | . 1 Investigation . | . . Extermination . | . . Reinforcement 1 | . 1 Assault . | . . Garrison . | . . Intercept . | . . Searches Triggered . | . . Construction Impeded . | . . Haulers Reinforced . | . . Active Scanning Responses . | . . Cargo Convoy Interrupts . | . . Stealth | -11 -10 --------- Run | Yrd Mat Distress Signals 1 | . 1 Communications Jammed . | . . Distress Signals . | . . Times Spotted 19 | . 19 Peak Tracking Total 7 | . 7 Tactical Retreats 2 | . 2 Traps | -11 -10 ------- Run | Yrd Mat Traps Triggered . | . . Indirectly . | . . Trap Hack Attempts . | . . Triggered . | . . Disarmed . | . . Reprogrammed . | . . Reused . | . . Traps Extracted . | . . Installed . | . . Triggered . | . . Machines | -11 -10 ---------- Run | Yrd Mat Machines Disabled . | . . Max in Single Turn . | . . Machines Repaired . | . . Machines Dismantled . | . . Machines Sabotaged . | . . Overloaded Fab Kills . | . . Hacking | -11 -10 --------- Run | Yrd Mat Machines Accessed 1 | . 1 Terminals 1 | . 1 Fabricators . | . . Repair Stations . | . . Recycling Units . | . . Scanalyzers . | . . Garrison Access . | . . Total Hacks 3 | . 3 Successful 2 | . 2 Failed 1 | . 1 Catastrophic 1 | . 1 Database Lockouts . | . . Manual 1 | . 1 Terminals 3 | . 3 Fabricators . | . . Repair Stations . | . . Recycling Units . | . . Scanalyzers . | . . Garrison Access . | . . Terminal Hacks 2 | . 2 Alert Level 1 | . 1 Hauler Manifests 1 | . 1 Fabricator Hacks . | . . Repair Station Hacks . | . . Recycling Unit Hacks . | . . Scanalyzer . | . . Garrison Access Hacks . | . . Unauthorized Hacks . | . . Terminals . | . . Fabricators . | . . Repair Stations . | . . Recycling Units . | . . Scanalyzers . | . . Garrison Access . | . . Data Cores Recovered . | . . Used . | . . Hacking Detections 1 | . 1 Full Trace Events . | . . Feedback Events . | . . Feedback Blocked . | . . Robot Schematics Acquired . | . . Robots Built . | . . Authchips . | . . Time . | . . Total Robot Build Rating . | . . Part Schematics Acquired . | . . Parts Built . | . . Authchips . | . . Time . | . . Total Part Build Rating . | . . Parts Repaired . | . . Time . | . . Parts Recycled . | . . Recycled Matter . | . . Retrieved Matter . | . . Retrieved Components . | . . Parts Scanalyzed . | . . Part Schematics Acquired . | . . Parts Damaged . | . . Bothacking | -11 -10 ------------ Run | Yrd Mat Used RIF Installer . | . . Robots Hacked 6 | . 6 Non-combat 5 | . 5 Combat 1 | . 1 Robot Hacks Applied 7 | . 7 parse_system 5 | . 5 no_distress 1 | . 1 find_recycling 1 | . 1 Relay Couplers Released . | . . Fabnet Peak Effective % . | . . Robots Rewired . | . . Allies Hacked . | . . Hacks Repelled . | . . Allies | -11 -10 -------- Run | Yrd Mat Total Allies . | . . Largest Group . | . . Highest-Rated Group . | . . Highest-Rated Ally . | . . Total Orders . | . . Ally Attacks . | . . Total Damage . | . . Kills . | . . Allies Corrupted . | . . Allies Melted . | . . Intel | -11 -10 ------- Run | Yrd Mat Active Infowar (turns) . | . . Robot Analysis Total . | . . Derelict Logs Recovered . | . . Drone Launches . | . . Drone Recoveries . | . . Exploration | -11 -10 ------------- Run | Yrd Mat Turns Passed 640 | 51 589 Spaces Moved 572 | 51 521 Core 7 | 7 . Treads . | . . Legs . | . . Wheels 565 | 44 521 Hover . | . . Flight . | . . Fastest Speed 50 | 50 80 Average Speed 79 | 75 80 Slowest Speed 80 | 80 80 Overloaded Moves . | . . Propulsion Burnouts . | . . Robots Hopped . | . . Potential Cave-ins . | . . Cave-ins Triggered . | . . Exploration Rate (%) 31 | 4 58 Regions Visited 1 Branch Regions . Pre-discovered Areas . | . . Known Exits Taken . | . . Unknown Exits Taken 1 | 1 . Scrap Searched . | . . Spaces Dug . | . . Terrain Destroyed . | . . Melee . | . . Projectile . | . . AOE . | . . Terrain Rammed . | . . Walls Destroyed . | . . Machines Disabled . | . . Actions | -11 -10 --------- Run | Yrd Mat Total 708 | 60 648 Wait 68 | . 68 Move 571 | 50 521 Hop . | . . Pick Up 10 | 4 6 Fast Attach 7 | 6 1 Attach . | . . Detach . | . . Swap 4 | . 4 Drop 3 | . 3 Fire 23 | . 23 Melee 19 | . 19 Ram 3 | . 3 Kick . | . . Crush . | . . Escape Stasis . | . . Rewire . | . . Trap . | . . Miscellaneous . | . . Route ------- -11/Scrapyard -10/Materials (discovered 3 exits: [*Mat x2] / [*Min]) History --------- Turn | Location | Event 7 | -11/Scrapyard | Discovered new exit (range 15) 52 | -11/Scrapyard | Entered Materials 309 | -10/Materials | Build established: Mutant 408 | -10/Materials | Discovered new exit (range 6) 493 | -10/Materials | Discovered new exit (range 14) 567 | -10/Materials | Discovered new exit (range 15) 624 | -10/Materials | Core integrity fell below 50% 633 | -10/Materials | Core integrity fell below 20% 641 | -10/Materials | Destroyed by G-34 Mercenary with Small Laser Last Messages --------------- it now. 00536_ ALERT: Hostiles spotted, dispatching reinforcements to Terminal M002. 00542_ Sneak attack on A-02 Transporter. 00542_ Jacked A-02 Transporter... 00567_ EXIT=FOUND 00571_ Slammed into W-16 Scout. 00572_ W-16 Scout sends out distress signal. 00575_ U-05 Engineer destroyed. 00583_ S-10 Pest destroyed. 00587_ Lgt. Ion Engine destroyed. 00589_ K-01 Serf collects debris. 00611_ Wheel destroyed. 00613_ S-10 Pest destroyed. 00617_ Assault Rifle destroyed. 00617_ Jacked S-10 Pest... >>parse_system Reading system data... 00621_ Datajack destroyed. 00625_ Wheel destroyed. Map ----- +----------------------------------------------------+ | ?????????????????????????????????????????????????? | | ?????????????????????????????????????????????????? | | ??????????????????????????????#########??????????? | | ??????????????????????????????# #??????????? | | ?????????????????####?????##### = #???####???? | | ????????????????? #?????# # """ #?##"""##??? | | ????????????????? < #?????# + """ ###"!!!"##?? | | ???????????????## ####### # """ ##"" ""#?? | | ??????????????? # # # / ## #?? | | ??????????????? # # # #? < #?? | | ??????????????? # # # """ #? #?? | | ???????????????? # """ # # = T" #?? #?? | | ???????????????? # "R + # /""" #?? #??? | | ???????????????? # """ # # % * #??# ####? | | ????????????????# # # ####+####### !## | | ????????????????# ####### !# | | ????????????????# ! !# | | ??????########### =^* !# | | ?# ! % =%! #########+## !# | | ?? "" ########## = ####### #??# ## !## | | ????????????????#=%*# + #??#""" ## ####? | | ????????????????# [ # """s# #??#""" ##= !#???? | | ????????????????# # """ # #??#""" ## = #???? | | ????????????????# # """ # #??#""" ## #???? | | ????????????????# # """ # #??# ## ##### | | ????????????????# # """@# #??#""" ## | | ????????????????# # sg% #??#""" + | | ????????????????# ####### #??#""" ## | | ????????????????# #?????# #??#""" ####### | | ????????????????# ####### #??# #?????# | | ????????????????# #??# #?????# | | ????????????????# #??# #?????# | | ????????????????# #####+#####?????# | | ?????????######## ####### # #?????# | | ?????????# # # # # #?????# | | ?????????# # #""" + + #?????# | | ?????????# """ + #""" # # #?????# | | ?????????# """ # #""" # ###########?????# | | ?????????# """ # # # #??????########## | | ?????????# + ####### #??????# [ # | | ?????????#########+#####??# +??????# # | | ??????????????# #??# #??????# # | | ??????????????# """"" #??# #??????# + T | | ??????????????# """"" %#??# #??????# # | | ??????????????# """"" #??# #??????# # | | ??????????????# """"" #??# #??????# ## | | ??????????????# """"" #### #??????# ## | | ??????????????# """"" + #??????# ## | | ??????????????# """"" #####+##??????########### | | ??????????????# #????????????????# ## | +----------------------------------------------------+ Best States ------------- Heat Dissipation 25 Energy Generation 10 Energy Capacity 125 Matter Stores 300 Matter Capacity 300 Sight Range 16 Terrain Scan Density 10 Evasion (%) 44 Item Schematics ----------------- None Robot Schematics ------------------ None Fabricated ------------ Nothing Repaired ---------- Nothing Alien Tech Used ----------------- None Achievements -------------- Fist Fight Challenges ------------ None Game ------ Seed MicroRelayMegatreads Manual? 0 Play Time 00:10:44 Cumulative 25.3 hours Start 2025.05.10 @ 16:54:30 End 2025.05.10 @ 17:05:53 Sessions 1 Manual Loads 0 Difficulty Rogue Special Mode None Game No. 9 Rogue 5 Adventurer 0 Explorer 4 Win Type - Total 1 Types 1/0/0/0/0/0/0/0/0/0 Lore% 6 Gallery% 22 Achievement% 26 Wizard Run 0 Options --------- Layout 1 ASCII 0 Keyboard 0 Movement Mouse Keybinds 0 Fullscreen 1 Font 36/Smallcaps Map View 25x20 Zoom Use 100% Tactical HUD 1 Map Filters NONE Filters NONE Steam 1 RUN: c4a9a042-5095-4dc5-a5f7-e0b388d69186